fUST/lending_fUST_20240105
["ID","MTS","AMOUNT","RATE_DAILY","PERIOD"]
[310153059,1704384650125,-500.0,0.00039178,7]
[310153060,1704384650134,-1640.87,0.00039178,7]
[310153061,1704384650145,-1326.91,0.00039178,7]
[310153062,1704384650154,-500.0,0.00039178,7]
[310153063,1704384650164,-909.53,0.00039178,7]
[310153064,1704384650174,-500.0,0.00039178,7]
[310153065,1704384650183,-504.39400687,0.00039178,7]
[310153066,1704384650192,-3757.04,0.00039178,7]
[310153067,1704384650202,-607.78067208,0.00039178,7]
[310153068,1704384650211,-500.0,0.00039178,7]
[310153069,1704384650220,-500.0,0.00039178,7]
[310153070,1704384650230,-500.0,0.00039178,7]
[310153071,1704384650239,-500.0,0.00039178,7]
[310153072,1704384650248,-500.0,0.00039178,7]
[310153073,1704384650258,-500.0,0.00039178,7]
[310153074,1704384650267,-260.47772452,0.00039178,7]
[310153075,1704384650276,-728.9,0.00039178,7]
[310153076,1704384650287,-945.75,0.00039178,7]
[310153077,1704384650297,-500.0,0.00039178,7]
[310153079,1704384650308,-500.0,0.00039178,7]
[310153080,1704384650318,-500.0,0.00039178,7]
[310153081,1704384650328,-3363.18,0.00039178,7]
[310153082,1704384650338,-867.88,0.00039178,7]
[310153083,1704384650347,-1635.96,0.00039178,7]
[310153084,1704384650359,-500.0,0.00039178,7]
[310153085,1704384650369,-500.0,0.00039178,7]
[310153086,1704384650378,-500.0,0.00039178,7]
[310153087,1704384650388,-12109.38,0.00039178,7]
[310153088,1704384650399,-500.0,0.00039178,7]
[310153089,1704384650408,-324.47795892,0.00039178,7]
[310153090,1704384650418,-3889.06,0.00039178,7]
[310153091,1704384650427,-504.90989519,0.00039178,7]
[310153092,1704384650438,-504.88822825,0.00039178,7]
[310153093,1704384650448,-500.0,0.00039178,7]
[310153094,1704384650458,-500.0,0.00039178,7]
[310153095,1704384650467,-500.0,0.00039178,7]
[310153096,1704384650477,-500.0,0.00039178,7]
[310153097,1704384650487,-500.0,0.00039178,7]
[310153098,1704384650496,-777.49,0.00039178,7]
[310153099,1704384650506,-500.0,0.00039178,7]
[310153100,1704384650516,-500.0,0.00039178,7]
[310153101,1704384650525,-28505.95,0.00039178,7]
[310153102,1704384650534,-500.0,0.00039178,7]
[310153103,1704384650544,-533.64488153,0.00039178,7]
[310153104,1704384650554,-500.0,0.00039178,7]
[310153105,1704384650564,-500.0,0.00039178,7]
[310153106,1704384650573,-500.0,0.00039178,7]
[310153107,1704384650583,-500.0,0.00039178,7]
[310153108,1704384650592,-500.0,0.00039178,7]
[310153109,1704384650602,-409.68093324,0.00039178,7]
[310153110,1704384650612,-500.0,0.00039178,7]
[310153111,1704384650621,-500.0,0.00039178,7]
[310153112,1704384650630,-500.0,0.00039178,7]
[310153113,1704384650639,-513.76685189,0.00039178,7]
[310153114,1704384650649,-500.0,0.00039178,7]
[310153115,1704384650658,-500.0,0.00039178,7]
[310153116,1704384650668,-7692.77,0.00039178,7]
[310153117,1704384650678,-500.0,0.00039178,7]
[310153118,1704384650687,-377.15772953,0.00039178,7]
[310153119,1704384650696,-500.0,0.00039178,7]
[310153121,1704384650706,-500.0,0.00039178,7]
[310153123,1704384650715,-836.7,0.00039178,7]
[310153125,1704384650725,-785.56,0.00039178,7]
[310153127,1704384650734,-500.0,0.00039178,7]
[310153129,1704384650744,-500.0,0.00039178,7]
[310153131,1704384650753,-1229.89,0.00039178,7]
[310153133,1704384650763,-2378.79,0.00039178,7]
[310153135,1704384650772,-1215.01,0.00039178,7]
[310153137,1704384650782,-601.84,0.00039178,7]
[310153139,1704384650792,-500.0,0.00039178,7]
[310153141,1704384650801,-807.95,0.00039178,7]
[310153143,1704384650811,-500.0,0.00039178,7]
[310153145,1704384650821,-500.0,0.00039178,7]
[310153147,1704384650830,-500.0,0.00039178,7]
[310153149,1704384650839,-3807.74,0.00039178,7]
[310153151,1704384650849,-500.0,0.00039178,7]
[310153153,1704384650858,-500.0,0.00039178,7]
[310153155,1704384650869,-500.0,0.00039178,2]
[310153157,1704384650878,-155.82739453,0.00039178,7]
[310153159,1704384650888,-500.0,0.00039178,7]
[310153161,1704384650897,-500.0,0.00039178,7]
[310153163,1704384650907,-151.0,0.00039178,2]
[310153166,1704384650916,-151.0,0.00039178,2]
[310153168,1704384650926,-250.38966,0.00039178,2]
[310153170,1704384650935,-250.38966,0.00039178,2]
[310153172,1704384650944,-250.38966,0.00039178,2]
[310153174,1704384650954,-250.38966,0.00039178,2]
[310153176,1704384650963,-229.50322,0.00039178,2]
[310153177,1704384650972,-229.50322,0.00039178,2]
[310153180,1704384650982,-307.2784068,0.00039178,2]
[310153181,1704384650991,-500.0,0.00039452,2]
[310153183,1704384651001,-500.0,0.00039452,2]
[310153185,1704384651011,-500.0,0.00039452,2]
[310153188,1704384651024,-500.0,0.00039452,2]
[310153190,1704384651033,-500.0,0.00039452,2]
[310153192,1704384651042,-515.82,0.00039452,7]
[310153194,1704384651052,-500.0,0.00039452,2]
[310153195,1704384651062,-500.0,0.00039452,7]
[310153197,1704384651071,-500.0,0.00039452,7]
[310153200,1704384651080,-500.0,0.00039452,7]
[310153201,1704384651089,-500.0,0.00039452,7]
[310153203,1704384651098,-500.0,0.00039452,7]
[310153206,1704384651108,-212.49443009,0.00039452,7]
[310153207,1704384651117,-163.22650141,0.00039452,7]
[310153209,1704384651126,-297.55460532,0.00039452,7]
[310153211,1704384651135,-460.58336195,0.00039452,7]
[310153213,1704384651144,-500.0,0.00039452,7]
[310153215,1704384651153,-548.88,0.00039452,7]
[310153217,1704384651162,-500.0,0.00039452,7]
[310153219,1704384651172,-500.0,0.00039452,7]
[310153222,1704384651181,-500.0,0.00039452,7]
[310153223,1704384651191,-516.28843698,0.00039452,7]
[310153226,1704384651200,-500.0,0.00039452,7]
[310153228,1704384651210,-500.0,0.00039452,7]
[310153230,1704384651219,-1029.28,0.00039452,7]
[310153232,1704384651229,-500.0,0.00039452,7]
[310153233,1704384651238,-500.0,0.00039452,7]
[310153235,1704384651247,-500.0,0.00039452,7]
[310153237,1704384651257,-928.48,0.00039452,7]
[310153239,1704384651266,-930.59,0.00039452,7]
[310153241,1704384651275,-500.0,0.00039452,7]
[310153243,1704384651284,-500.0,0.00039452,7]
[310153245,1704384651293,-596.46004971,0.00039452,7]
[310153247,1704384651304,-773.72,0.00039452,7]
[310153249,1704384651314,-500.0,0.00039452,7]
[310153251,1704384651324,-500.0,0.00039452,7]
[310153253,1704384651334,-500.0,0.00039452,7]
[310153255,1704384651343,-500.0,0.00039452,7]
[310153257,1704384651352,-46721.58,0.00039452,3]
[310153259,1704384651361,-500.0,0.00039452,7]
[310153261,1704384651370,-228.34356058,0.00039452,7]
[310153263,1704384651379,-500.0,0.00039452,7]
[310153265,1704384651388,-575.08,0.00039452,2]
[310153267,1704384651398,-933.65,0.00039452,7]
[310153269,1704384651407,-500.0,0.00039452,7]
[310153279,1704384651493,-500.0,0.00039452,7]
[310153281,1704384651503,-500.0,0.00039452,7]
[310153283,1704384651514,-500.0,0.00039452,7]
[310153285,1704384651524,-500.0,0.00039452,7]
[310153287,1704384651534,-500.0,0.00039452,7]
[310153289,1704384651544,-1475.02,0.00039452,7]
[310153291,1704384651554,-500.0,0.00039452,7]
[310153293,1704384651567,-500.0,0.00039452,7]
[310153295,1704384651576,-500.0,0.00039452,7]
[310153297,1704384651586,-1245.07,0.00039452,7]
[310153299,1704384651595,-500.0,0.00039452,7]
[310153301,1704384651605,-500.0,0.00039452,7]
[310153304,1704384651616,-500.0,0.00039452,7]
[310153306,1704384651625,-726.47,0.00039452,7]
[310153308,1704384651634,-2214.33,0.00039452,7]
[310153310,1704384651644,-500.0,0.00039452,7]
[310153312,1704384651653,-500.0,0.00039452,7]
[310153314,1704384651662,-500.0,0.00039452,7]
[310153316,1704384651672,-998.67,0.00039452,7]
[310153318,1704384651681,-500.0,0.00039452,7]
[310153320,1704384651690,-500.0,0.00039452,7]
[310153322,1704384651699,-500.0,0.00039452,7]
[310153323,1704384651708,-1389.21,0.00039452,7]
[310153326,1704384651720,-500.0,0.00039452,7]
[310153327,1704384651729,-500.0,0.00039452,7]
[310153329,1704384651739,-500.0,0.00039452,7]
[310153331,1704384651749,-500.0,0.00039452,7]
[310153334,1704384651758,-500.0,0.00039452,7]
[310153335,1704384651767,-504.28,0.00039452,7]
[310153338,1704384651776,-676.9,0.00039452,7]
[310153339,1704384651786,-199.91283579,0.00039452,7]
[310153341,1704384651795,-500.0,0.00039452,7]
[310153343,1704384651804,-504.6134271,0.00039452,7]
[310153345,1704384651817,-500.0,0.00039452,7]
[310153348,1704384651827,-500.0,0.00039452,7]
[310153350,1704384651839,-500.0,0.00039452,7]
[310153352,1704384651848,-500.0,0.00039452,7]
[310153354,1704384651857,-813.36,0.00039452,7]
[310153356,1704384651866,-500.0,0.00039452,7]
[310153358,1704384651875,-500.0,0.00039452,7]
[310153360,1704384651884,-602.61,0.00039452,7]
[310153362,1704384651893,-500.0,0.00039452,7]
[310153364,1704384651902,-541.29648697,0.00039452,7]
[310153366,1704384651912,-590.87,0.00039452,7]
[310153368,1704384651921,-500.0,0.00039452,7]
[310153370,1704384651931,-500.0,0.00039452,7]
[310153372,1704384651941,-500.0,0.00039452,7]
[310153374,1704384651950,-550.79041391,0.00039452,7]
[310153376,1704384651959,-500.0,0.00039452,7]
[310153378,1704384651968,-500.0,0.00039452,7]
[310153380,1704384651978,-500.0,0.00039452,7]
[310153382,1704384651987,-500.0,0.00039452,7]
[310153384,1704384651996,-500.0,0.00039452,7]
[310153386,1704384652006,-500.0,0.00039452,7]
[310153388,1704384652014,-500.0,0.00039452,7]
[310153390,1704384652024,-500.0,0.00039452,7]
[310153392,1704384652033,-500.0,0.00039452,7]
[310153394,1704384652042,-500.0,0.00039452,7]
[310153396,1704384652052,-500.0,0.00039452,7]
[310153398,1704384652063,-936.46,0.00039452,7]
[310153400,1704384652073,-500.0,0.00039452,7]
[310153402,1704384652082,-500.0,0.00039452,7]
[310153404,1704384652091,-500.0,0.00039452,7]
[310153405,1704384652101,-2773.84,0.00039452,7]
[310153407,1704384652110,-500.0,0.00039452,7]
[310153410,1704384652120,-938.14,0.00039452,7]
[310153412,1704384652129,-194.65028175,0.00039452,7]
[310153414,1704384652139,-500.0,0.00039452,7]
[310153415,1704384652148,-500.0,0.00039452,7]
[310153417,1704384652158,-500.0,0.00039452,7]
[310153419,1704384652167,-500.0,0.00039452,7]
[310153422,1704384652178,-500.0,0.00039452,7]
[310153424,1704384652187,-500.0,0.00039452,7]
[310153426,1704384652196,-514.16399318,0.00039452,7]
[310153428,1704384652206,-500.0,0.00039452,7]
[310153429,1704384652215,-500.0,0.00039452,7]
[310153431,1704384652226,-500.0,0.00039452,7]
[310153433,1704384652235,-500.0,0.00039452,7]
[310153435,1704384652245,-275.54565894,0.00039452,7]
[310153437,1704384652254,-500.0,0.00039452,7]
[310153439,1704384652264,-7189.88,0.00039452,7]
[310153441,1704384652273,-500.0,0.00039452,7]
[310153443,1704384652283,-500.0,0.00039452,7]
[310153445,1704384652292,-500.0,0.00039452,7]
[310153447,1704384652301,-500.0,0.00039452,7]
[310153450,1704384652313,-399.84214994,0.00039452,7]
[310153452,1704384652322,-3714.82,0.00039452,7]
[310153453,1704384652332,-500.0,0.00039452,7]
[310153455,1704384652342,-2622.15,0.00039452,7]
[310153458,1704384652356,-500.0,0.00039452,7]
[310153460,1704384652366,-1640.87,0.00039452,7]
[310153462,1704384652375,-1326.91,0.00039452,7]
[310153464,1704384652385,-500.0,0.00039452,7]
[310153465,1704384652395,-909.53,0.00039452,7]
[310153468,1704384652405,-500.0,0.00039452,7]
[310153470,1704384652414,-3757.04,0.00039452,7]
[310153472,1704384652424,-500.0,0.00039452,7]
[310153474,1704384652434,-500.0,0.00039452,7]
[310153476,1704384652444,-500.0,0.00039452,7]
[310153478,1704384652454,-500.0,0.00039452,7]
[310153479,1704384652463,-500.0,0.00039452,7]
[310153482,1704384652473,-500.0,0.00039452,7]
[310153483,1704384652483,-728.9,0.00039452,7]
[310153486,1704384652493,-945.75,0.00039452,7]
[310153488,1704384652503,-500.0,0.00039452,7]
[310153490,1704384652512,-500.0,0.00039452,7]
[310153491,1704384652522,-500.0,0.00039452,7]
[310153494,1704384652531,-3363.18,0.00039452,7]
[310153495,1704384652541,-867.88,0.00039452,7]
[310153498,1704384652550,-1635.96,0.00039452,7]
[310153500,1704384652562,-500.0,0.00039452,7]
[310153502,1704384652570,-506.48010432,0.00039452,7]
[310153504,1704384652579,-500.0,0.00039452,7]
[310153506,1704384652588,-511.12703444,0.00039452,7]
[310153508,1704384652598,-12109.38,0.00039452,7]
[310153510,1704384652607,-3889.06,0.00039452,7]
[310153512,1704384652616,-500.0,0.00039452,7]
[310153514,1704384652625,-291.43804867,0.00039452,7]
[310153516,1704384652635,-500.0,0.00039452,7]
[310153518,1704384652644,-500.0,0.00039452,7]
[310153520,1704384652653,-500.0,0.00039452,7]
[310153522,1704384652663,-777.49,0.00039452,7]
[310153524,1704384652672,-500.0,0.00039452,7]
[310153526,1704384652681,-500.0,0.00039452,7]
[310153528,1704384652690,-28505.95,0.00039452,7]
[310153530,1704384652699,-500.0,0.00039452,7]
[310153532,1704384652709,-500.0,0.00039452,7]
[310153534,1704384652718,-179.32268542,0.00039452,7]
[310153536,1704384652727,-500.0,0.00039452,7]
[310153538,1704384652736,-500.0,0.00039452,7]
[310153540,1704384652745,-500.0,0.00039452,7]
[310153542,1704384652754,-500.0,0.00039452,7]
[310153544,1704384652764,-500.0,0.00039452,7]
[310153546,1704384652773,-500.0,0.00039452,7]
[310153548,1704384652782,-566.80669361,0.00039452,7]
[310153550,1704384652792,-500.0,0.00039452,7]
[310153552,1704384652805,-7692.77,0.00039452,7]
[310153554,1704384652816,-500.0,0.00039452,7]
[310153556,1704384652825,-500.0,0.00039452,7]
[310153558,1704384652835,-500.0,0.00039452,7]
[310153560,1704384652844,-836.7,0.00039452,7]
[310153562,1704384652853,-785.56,0.00039452,7]
[310153564,1704384652863,-500.0,0.00039452,7]
[310153566,1704384652872,-500.0,0.00039452,7]
[310153568,1704384652881,-1229.89,0.00039452,7]
[310153570,1704384652890,-2378.79,0.00039452,7]
[310153572,1704384652899,-1215.01,0.00039452,7]
[310153574,1704384652908,-601.84,0.00039452,7]
[310153576,1704384652917,-536.05891728,0.00039452,7]
[310153578,1704384652926,-807.95,0.00039452,7]
[310153580,1704384652935,-500.0,0.00039452,7]
[310153582,1704384652944,-500.0,0.00039452,7]
[310153584,1704384652953,-500.0,0.00039452,7]
[310153586,1704384652962,-3807.74,0.00039452,7]
[310153588,1704384652971,-364.00183387,0.00039452,7]
[310153590,1704384652980,-505.21697325,0.00039452,7]
[310153592,1704384652989,-500.0,0.00039452,2]
[310153594,1704384652998,-588.30468801,0.00039452,7]
[310153596,1704384653008,-151.0,0.00039452,2]
[310153598,1704384653017,-250.38966,0.00039452,2]
[310153600,1704384653026,-250.38966,0.00039452,2]
[310153610,1704384653106,-229.50322,0.00039452,2]
[310153612,1704384653116,-4000.0,0.0003963,2]
[310153614,1704384653125,-250.0,0.00039702,30]
[310153616,1704384653135,-515.82,0.00039726,7]
[310153618,1704384653144,-500.0,0.00039726,2]
[310153620,1704384653153,-500.0,0.00039726,7]
[310153622,1704384653163,-500.0,0.00039726,7]
[310153624,1704384653172,-500.0,0.00039726,7]
[310153626,1704384653181,-500.0,0.00039726,7]
[310153628,1704384653190,-500.0,0.00039726,7]
[310153630,1704384653199,-500.0,0.00039726,7]
[310153632,1704384653209,-548.88,0.00039726,7]
[310153634,1704384653218,-500.0,0.00039726,7]
[310153636,1704384653227,-500.0,0.00039726,7]
[310153638,1704384653237,-500.0,0.00039726,7]
[310153640,1704384653247,-500.0,0.00039726,7]
[310153642,1704384653257,-500.0,0.00039726,7]
[310153644,1704384653266,-1029.28,0.00039726,7]
[310153646,1704384653275,-500.0,0.00039726,7]
[310153648,1704384653285,-500.0,0.00039726,7]
[310153650,1704384653294,-516.13624976,0.00039726,7]
[310153652,1704384653303,-928.48,0.00039726,7]
[310153654,1704384653313,-930.59,0.00039726,7]
[310153656,1704384653323,-500.0,0.00039726,7]
[310153658,1704384653332,-500.0,0.00039726,7]
[310153660,1704384653342,-773.72,0.00039726,7]
[310153662,1704384653350,-500.0,0.00039726,7]
[310153664,1704384653360,-500.0,0.00039726,7]
[310153666,1704384653369,-500.0,0.00039726,7]
[310153668,1704384653379,-500.0,0.00039726,7]
[310153670,1704384653388,-46721.58,0.00039726,3]
[310153672,1704384653398,-500.0,0.00039726,7]
[310153674,1704384653407,-500.0,0.00039726,7]
[310153676,1704384653417,-575.08,0.00039726,2]
[310153678,1704384653426,-933.65,0.00039726,7]
[310153680,1704384653437,-500.0,0.00039726,7]
[310153682,1704384653447,-500.0,0.00039726,7]
[310153684,1704384653457,-500.0,0.00039726,7]
[310153686,1704384653466,-500.0,0.00039726,7]
[310153688,1704384653475,-500.0,0.00039726,7]
[310153690,1704384653485,-500.0,0.00039726,7]
[310153692,1704384653494,-1475.02,0.00039726,7]
[310153694,1704384653504,-500.0,0.00039726,7]
[310153696,1704384653513,-500.0,0.00039726,7]
[310153698,1704384653522,-500.0,0.00039726,7]
[310153700,1704384653531,-1245.07,0.00039726,7]
[310153702,1704384653541,-500.0,0.00039726,7]
[310153704,1704384653550,-500.0,0.00039726,7]
[310153706,1704384653562,-500.0,0.00039726,7]
[310153708,1704384653571,-726.47,0.00039726,7]
[310153710,1704384653580,-2214.33,0.00039726,7]
[310153712,1704384653590,-500.0,0.00039726,7]
[310153714,1704384653600,-500.0,0.00039726,7]
[310153716,1704384653610,-500.0,0.00039726,7]
[310153718,1704384653620,-998.67,0.00039726,7]
[310153720,1704384653629,-500.0,0.00039726,7]
[310153722,1704384653639,-500.0,0.00039726,7]
[310153723,1704384653649,-500.0,0.00039726,7]
[310153725,1704384653658,-1389.21,0.00039726,7]
[310153727,1704384653668,-500.0,0.00039726,7]
[310153729,1704384653677,-500.0,0.00039726,7]
[310153731,1704384653686,-500.0,0.00039726,7]
[310153733,1704384653696,-500.0,0.00039726,7]
[310153735,1704384653705,-500.0,0.00039726,7]
[310153737,1704384653714,-504.28,0.00039726,7]
[310153739,1704384653724,-676.9,0.00039726,7]
[310153741,1704384653734,-500.0,0.00039726,7]
[310153744,1704384653743,-500.0,0.00039726,7]
[310153746,1704384653753,-500.0,0.00039726,7]
[310153748,1704384653766,-500.0,0.00039726,7]
[310153750,1704384653775,-500.0,0.00039726,7]
[310153752,1704384653784,-813.36,0.00039726,7]
[310153754,1704384653794,-529.00573451,0.00039726,7]
[310153756,1704384653804,-214.18076035,0.00039726,7]
[310153757,1704384653816,-602.61,0.00039726,7]
[310153759,1704384653825,-166.36146967,0.00039726,7]
[310153761,1704384653834,-590.87,0.00039726,7]
[310153763,1704384653843,-410.47166124,0.00039726,7]
[310153765,1704384653852,-500.0,0.00039726,7]
[310153767,1704384653861,-539.01754546,0.00039726,7]
[310153770,1704384653870,-500.0,0.00039726,7]
[310153772,1704384653880,-500.0,0.00039726,7]
[310153774,1704384653889,-500.0,0.00039726,7]
[310153776,1704384653899,-189.56691927,0.00039726,7]
[310153778,1704384653908,-500.0,0.00039726,7]
[310153780,1704384653918,-500.0,0.00039726,7]
[310153782,1704384653928,-500.0,0.00039726,7]
[310153784,1704384653937,-500.0,0.00039726,7]
[310153786,1704384653947,-500.0,0.00039726,7]
[310153788,1704384653956,-500.0,0.00039726,7]
[310153790,1704384653965,-500.0,0.00039726,7]
[310153791,1704384653974,-936.46,0.00039726,7]
[310153793,1704384653983,-500.0,0.00039726,7]
[310153795,1704384653992,-500.0,0.00039726,7]
[310153798,1704384654002,-500.0,0.00039726,7]
[310153799,1704384654011,-2773.84,0.00039726,7]
[310153802,1704384654021,-512.2571392,0.00039726,7]
[310153804,1704384654030,-938.14,0.00039726,7]
[310153805,1704384654039,-500.0,0.00039726,7]
[310153807,1704384654048,-500.0,0.00039726,7]
[310153810,1704384654058,-575.41010364,0.00039726,7]
[310153812,1704384654069,-500.0,0.00039726,7]
[310153813,1704384654079,-500.0,0.00039726,7]
[310153815,1704384654088,-500.0,0.00039726,7]
[310153817,1704384654097,-500.0,0.00039726,7]
[310153819,1704384654106,-500.0,0.00039726,7]
[310153821,1704384654115,-500.0,0.00039726,7]
[310153823,1704384654124,-500.0,0.00039726,7]
[310153825,1704384654134,-506.95750076,0.00039726,7]
[310153827,1704384654143,-7189.88,0.00039726,7]
[310153829,1704384654152,-500.0,0.00039726,7]
[310153831,1704384654161,-500.0,0.00039726,7]
[310153833,1704384654170,-500.0,0.00039726,7]
[310153835,1704384654179,-500.0,0.00039726,7]
[310153837,1704384654189,-3714.82,0.00039726,7]
[310153839,1704384654198,-500.0,0.00039726,7]
[310153841,1704384654207,-2622.15,0.00039726,7]
[310153844,1704384654217,-500.0,0.00039726,7]
[310153846,1704384654226,-1640.87,0.00039726,7]
[310153847,1704384654235,-1326.91,0.00039726,7]
[310153849,1704384654245,-500.0,0.00039726,7]
[310153852,1704384654254,-909.53,0.00039726,7]
[310153854,1704384654263,-500.0,0.00039726,7]
[310153856,1704384654272,-3757.04,0.00039726,7]
[310153857,1704384654282,-500.0,0.00039726,7]
[310153860,1704384654292,-521.44648394,0.00039726,7]
[310153862,1704384654302,-500.0,0.00039726,7]
[310153863,1704384654312,-500.0,0.00039726,7]
[310153866,1704384654321,-500.0,0.00039726,7]
[310153868,1704384654331,-500.0,0.00039726,7]
[310153870,1704384654341,-728.9,0.00039726,7]
[310153872,1704384654352,-945.75,0.00039726,7]
[310153874,1704384654361,-500.0,0.00039726,7]
[310153875,1704384654373,-292.97453826,0.00039726,7]
[310153877,1704384654383,-500.0,0.00039726,7]
[310153879,1704384654394,-3363.18,0.00039726,7]
[310153881,1704384654404,-867.88,0.00039726,7]
[310153883,1704384654414,-1635.96,0.00039726,7]
[310153885,1704384654424,-500.0,0.00039726,7]
[310153887,1704384654436,-500.0,0.00039726,7]
[310153889,1704384654445,-12109.38,0.00039726,7]
[310153891,1704384654456,-3889.06,0.00039726,7]
[310153893,1704384654467,-500.0,0.00039726,7]
[310153895,1704384654476,-500.0,0.00039726,7]
[310153897,1704384654487,-500.0,0.00039726,7]
[310153899,1704384654497,-500.0,0.00039726,7]
[310153901,1704384654507,-777.49,0.00039726,7]
[310153903,1704384654516,-500.0,0.00039726,7]
[310153912,1704384654594,-500.0,0.00039726,7]
[310153914,1704384654603,-28505.95,0.00039726,7]
[310153916,1704384654612,-500.0,0.00039726,7]
[310153918,1704384654622,-500.0,0.00039726,7]
[310153920,1704384654632,-500.0,0.00039726,7]
[310153921,1704384654641,-176.08753667,0.00039726,7]
[310153923,1704384654649,-500.0,0.00039726,7]
[310153925,1704384654659,-463.47215912,0.00039726,7]
[310153927,1704384654668,-500.0,0.00039726,7]
[310153929,1704384654677,-500.0,0.00039726,7]
[310153931,1704384654687,-500.0,0.00039726,7]
[310153933,1704384654696,-7692.77,0.00039726,7]
[310153935,1704384654705,-500.0,0.00039726,7]
[310153937,1704384654715,-157.14295597,0.00039726,7]
[310153939,1704384654724,-500.0,0.00039726,7]
[310153941,1704384654733,-836.7,0.00039726,7]
[310153943,1704384654743,-785.56,0.00039726,7]
[310153945,1704384654752,-500.0,0.00039726,7]
[310153947,1704384654761,-500.0,0.00039726,7]
[310153949,1704384654770,-1229.89,0.00039726,7]
[310153951,1704384654779,-2378.79,0.00039726,7]
[310153953,1704384654788,-1215.01,0.00039726,7]
[310153955,1704384654796,-601.84,0.00039726,7]
[310153957,1704384654806,-807.95,0.00039726,7]
[310153959,1704384654816,-500.0,0.00039726,7]
[310153960,1704384654825,-500.0,0.00039726,7]
[310153962,1704384654835,-500.0,0.00039726,7]
[310153964,1704384654844,-3807.74,0.00039726,7]
[310153966,1704384654854,-500.0,0.00039726,2]
[310153968,1704384654865,-151.0,0.00039726,2]
[310153970,1704384654874,-151.0,0.00039726,2]
[310153972,1704384654883,-250.38966,0.00039726,2]
[310153974,1704384654893,-250.38966,0.00039726,2]
[310153976,1704384654901,-250.38966,0.00039726,2]
[310153978,1704384654911,-250.38966,0.00039726,2]
[310153980,1704384654920,-153.0,0.00039726,2]
[310153982,1704384654929,-153.0,0.00039726,2]
[310153984,1704384654941,-153.0,0.00039726,2]
[310153986,1704384654950,-153.0,0.00039726,2]
[310153988,1704384654959,-153.0,0.00039726,2]
[310153990,1704384654969,-153.0,0.00039726,2]
[310153992,1704384654978,-153.0,0.00039726,2]
[310153994,1704384654987,-153.0,0.00039726,2]
[310153996,1704384654996,-153.0,0.00039726,2]
[310153998,1704384655005,-153.0,0.00039726,2]
[310154000,1704384655013,-153.0,0.00039726,2]
[310154002,1704384655023,-153.0,0.00039726,2]
[310154004,1704384655031,-153.0,0.00039726,2]
[310154006,1704384655040,-153.0,0.00039726,2]
[310154007,1704384655050,-153.0,0.00039726,2]
[310154009,1704384655059,-153.0,0.00039726,2]
[310154011,1704384655070,-153.0,0.00039726,2]
[310154013,1704384655080,-153.0,0.00039726,2]
[310154015,1704384655089,-153.0,0.00039726,2]
[310154017,1704384655099,-15009.97665369,0.0003978,2]
[310154019,1704384655107,-39873.28510524,0.000398,2]